[Event "*** Titled Tuesday Blitz"]
[Site "Chess.com"]
[Date "2020.11.24"]
[Round "11"]
[White "Pikachess999"]
[Black "beto-betun"]
[Result "1-0"]
[WhiteElo "2354"]
[BlackElo "2211"]
[TimeControl "180+1"]
[EndTime "12:23:35 PST"]
[Termination "Pikachess999 won by resignation"]

1. e4 {[%clk 0:03:00.9]} 1... c5 {[%clk 0:03:00.3]} 2. a3 {[%clk 0:03:01.2]}
2... d5 {[%clk 0:02:58.5]} 3. exd5 {[%clk 0:03:01.2]} 3... Qxd5 {[%clk
0:02:59.1]} 4. Nc3 {[%clk 0:03:01.2]} 4... Qd8 {[%clk 0:02:54.6]} 5. Nf3 {[%clk
0:03:01.6]} 5... Nc6 {[%clk 0:02:54.7]} 6. Bb5 {[%clk 0:03:01.2]} 6... Bd7
{[%clk 0:02:54.2]} 7. O-O {[%clk 0:02:58.7]} 7... Nf6 {[%clk 0:02:53.9]} 8. d4
{[%clk 0:02:58.3]} 8... cxd4 {[%clk 0:02:53.1]} 9. Nxd4 {[%clk 0:02:59.2]} 9...
e6 {[%clk 0:02:53.6]} 10. Nxc6 {[%clk 0:02:50.3]} 10... Bxc6 {[%clk 0:02:51.2]}
11. Bxc6+ {[%clk 0:02:50.4]} 11... bxc6 {[%clk 0:02:52.1]} 12. Qf3 {[%clk
0:02:46.6]} 12... Qc7 {[%clk 0:02:49.9]} 13. Bf4 {[%clk 0:02:43.3]} 13... Bd6
{[%clk 0:02:45.7]} 14. Bxd6 {[%clk 0:02:42]} 14... Qxd6 {[%clk 0:02:46.6]} 15.
Rad1 {[%clk 0:02:42]} 15... Qc7 {[%clk 0:02:47.1]} 16. Rd4 {[%clk 0:02:35]}
16... Ke7 {[%clk 0:02:46.1]} 17. Rc4 {[%clk 0:02:29.9]} 17... Rac8 {[%clk
0:02:46.1]} 18. b4 {[%clk 0:02:22.5]} 18... Qb7 {[%clk 0:02:34.9]} 19. Rc5
{[%clk 0:02:10]} 19... Rhd8 {[%clk 0:02:23.4]} 20. Ne4 {[%clk 0:01:53]} 20...
Nxe4 {[%clk 0:02:22.7]} 21. Qxe4 {[%clk 0:01:53.9]} 21... Rd5 {[%clk 0:02:22.1]}
22. Qc4 {[%clk 0:01:45.5]} 22... Qd7 {[%clk 0:02:17.8]} 23. Qc3 {[%clk
0:01:37.2]} 23... Rxc5 {[%clk 0:02:13.9]} 24. Qxc5+ {[%clk 0:01:38.1]} 24... Qd6
{[%clk 0:02:14.5]} 25. Qxa7+ {[%clk 0:01:36.9]} 25... Rc7 {[%clk 0:02:15.1]} 26.
Qb6 {[%clk 0:01:33.6]} 26... c5 {[%clk 0:02:11.2]} 27. Qxd6+ {[%clk 0:01:03.6]}
27... Kxd6 {[%clk 0:02:12.1]} 28. c3 {[%clk 0:01:04.3]} 28... Ra7 {[%clk
0:02:06.9]} 29. Ra1 {[%clk 0:01:03.6]} 29... Kd5 {[%clk 0:02:05.3]} 30. a4
{[%clk 0:01:00.3]} 30... Kc4 {[%clk 0:01:57.4]} 31. b5 {[%clk 0:00:56.8]} 31...
Kxc3 {[%clk 0:01:55.6]} 32. b6 {[%clk 0:00:47.7]} 32... Ra8 {[%clk 0:01:47.6]}
33. b7 {[%clk 0:00:16.5]} 33... Rb8 {[%clk 0:01:46.9]} 34. Rb1 {[%clk
0:00:16.9]} 34... Kc2 {[%clk 0:01:43.8]} 35. Rb5 {[%clk 0:00:15.1]} 35... c4
{[%clk 0:01:44]} 36. a5 {[%clk 0:00:15.3]} 36... c3 {[%clk 0:01:43.5]} 37. a6
{[%clk 0:00:15.6]} 37... Kd1 {[%clk 0:01:43.6]} 38. a7 {[%clk 0:00:13.5]} 38...
c2 {[%clk 0:01:39.6]} 39. axb8=Q {[%clk 0:00:12]} 39... c1=Q {[%clk 0:01:40.2]}
40. h3 {[%clk 0:00:05.7]} 40... Ke2+ {[%clk 0:01:40.4]} 41. Kh2 {[%clk
0:00:05.9]} 41... e5 {[%clk 0:01:38.4]} 42. Qxe5+ {[%clk 0:00:05.7]} 42... Kd3
{[%clk 0:01:38.9]} 43. b8=Q {[%clk 0:00:05.6]} 43... Qf4+ {[%clk 0:01:38]} 44.
Qxf4 {[%clk 0:00:05.1]} 1-0

[Event "*** Titled Tuesday Blitz"]
[Site "Chess.com"]
[Date "2020.11.24"]
[Round "11"]
[White "hansen"]
[Black "Smirnov_Pavel"]
[Result "0-1"]
[WhiteElo "2932"]
[BlackElo "2854"]
[TimeControl "180+1"]
[EndTime "12:23:40 PST"]
[Termination "Smirnov_Pavel won on time"]

1. e4 {[%clk 0:03:00.9]} 1... c5 {[%clk 0:02:59]} 2. Nf3 {[%clk 0:02:58.9]} 2...
Nc6 {[%clk 0:02:59.4]} 3. Bb5 {[%clk 0:02:58.8]} 3... g6 {[%clk 0:02:58.9]} 4.
Bxc6 {[%clk 0:02:59.4]} 4... bxc6 {[%clk 0:02:59.8]} 5. O-O {[%clk 0:02:59.8]}
5... Bg7 {[%clk 0:03:00.4]} 6. Re1 {[%clk 0:03:00.4]} 6... Nh6 {[%clk 0:03:01]}
7. c3 {[%clk 0:03:00.7]} 7... O-O {[%clk 0:03:01.5]} 8. d4 {[%clk 0:03:01.3]}
8... cxd4 {[%clk 0:03:01.9]} 9. cxd4 {[%clk 0:03:02.2]} 9... d5 {[%clk
0:03:02.4]} 10. e5 {[%clk 0:03:02.6]} 10... f6 {[%clk 0:03:03.1]} 11. exf6
{[%clk 0:02:57.6]} 11... exf6 {[%clk 0:03:04]} 12. Nbd2 {[%clk 0:02:57.9]} 12...
Re8 {[%clk 0:03:01.1]} 13. Rxe8+ {[%clk 0:02:55.6]} 13... Qxe8 {[%clk 0:03:02]}
14. Nb3 {[%clk 0:02:56.1]} 14... g5 {[%clk 0:03:02.4]} 15. Bd2 {[%clk
0:02:54.3]} 15... Bf5 {[%clk 0:03:00.9]} 16. Rc1 {[%clk 0:02:53.2]} 16... Be4
{[%clk 0:02:54.6]} 17. Nc5 {[%clk 0:02:42.8]} 17... Nf5 {[%clk 0:02:52.2]} 18.
Bc3 {[%clk 0:02:34.5]} 18... Nd6 {[%clk 0:02:31.8]} 19. Nxe4 {[%clk 0:01:30.1]}
19... dxe4 {[%clk 0:02:20.8]} 20. Nd2 {[%clk 0:01:16.8]} 20... f5 {[%clk
0:02:14.4]} 21. Qa4 {[%clk 0:01:09.3]} 21... Nb5 {[%clk 0:01:54.5]} 22. Re1
{[%clk 0:00:52.9]} 22... Rd8 {[%clk 0:01:48.6]} 23. Nb3 {[%clk 0:00:50.4]} 23...
Qf7 {[%clk 0:01:46]} 24. g3 {[%clk 0:00:38.6]} 24... Qd5 {[%clk 0:01:42.4]} 25.
Qa6 {[%clk 0:00:36.9]} 25... f4 {[%clk 0:01:37]} 26. Qb7 {[%clk 0:00:27.9]}
26... Re8 {[%clk 0:01:26]} 27. Nc5 {[%clk 0:00:16.9]} 27... Nxd4 {[%clk
0:01:19.7]} 28. Bxd4 {[%clk 0:00:10.6]} 28... Bxd4 {[%clk 0:01:20.6]} 29. Nb3
{[%clk 0:00:04.8]} 29... e3 {[%clk 0:01:09.3]} 30. f3 {[%clk 0:00:02]} 30...
Qxf3 {[%clk 0:01:04.1]} 0-1

[Event "*** Titled Tuesday Blitz"]
[Site "Chess.com"]
[Date "2020.11.24"]
[Round "11"]
[White "GMaka"]
[Black "Gudmundur_Kjartansson"]
[Result "0-1"]
[WhiteElo "2436"]
[BlackElo "2551"]
[TimeControl "180+1"]
[EndTime "12:23:43 PST"]
[Termination "Gudmundur_Kjartansson won on time"]

1. d4 {[%clk 0:03:00.9]} 1... d5 {[%clk 0:02:57.1]} 2. c4 {[%clk 0:03:00]} 2...
e6 {[%clk 0:02:57.4]} 3. Nc3 {[%clk 0:02:59]} 3... c6 {[%clk 0:02:57.8]} 4. e4
{[%clk 0:02:56.9]} 4... dxe4 {[%clk 0:02:57.4]} 5. Nxe4 {[%clk 0:02:57.8]} 5...
Bb4+ {[%clk 0:02:57.7]} 6. Bd2 {[%clk 0:02:58.2]} 6... Qxd4 {[%clk 0:02:58.3]}
7. Bxb4 {[%clk 0:02:58.8]} 7... Qxe4+ {[%clk 0:02:58.9]} 8. Be2 {[%clk 0:02:59]}
8... Na6 {[%clk 0:02:59.3]} 9. Ba3 {[%clk 0:02:37.7]} 9... Bd7 {[%clk 0:02:17]}
10. Qd6 {[%clk 0:02:33.1]} 10... O-O-O {[%clk 0:02:10.3]} 11. O-O-O {[%clk
0:02:26.2]} 11... Nh6 {[%clk 0:02:06.8]} 12. Bf3 {[%clk 0:01:37.7]} 12... Qxc4+
{[%clk 0:02:03.7]} 13. Kb1 {[%clk 0:01:37.9]} 13... Nf5 {[%clk 0:02:02.9]} 14.
Qe5 {[%clk 0:01:29.3]} 14... f6 {[%clk 0:02:00.3]} 15. Qa5 {[%clk 0:01:28.5]}
15... Qb5 {[%clk 0:01:19.2]} 16. Qc3 {[%clk 0:00:59.4]} 16... e5 {[%clk
0:01:16.6]} 17. Be2 {[%clk 0:00:49.4]} 17... Qb6 {[%clk 0:01:14.5]} 18. Nh3
{[%clk 0:00:36.4]} 18... Be6 {[%clk 0:01:12.1]} 19. Bc4 {[%clk 0:00:27.8]} 19...
Bxc4 {[%clk 0:01:07.6]} 20. Qxc4 {[%clk 0:00:28.7]} 20... Nd4 {[%clk 0:01:04.7]}
21. Rc1 {[%clk 0:00:23.1]} 21... Rd7 {[%clk 0:01:00.6]} 22. Rhd1 {[%clk
0:00:22.8]} 22... Rhd8 {[%clk 0:00:59.5]} 23. f3 {[%clk 0:00:22.5]} 23... Nb5
{[%clk 0:00:51.5]} 24. Bd6 {[%clk 0:00:01.7]} 24... Rxd6 {[%clk 0:00:49.2]} 0-1

[Event "*** Titled Tuesday Blitz"]
[Site "Chess.com"]
[Date "2020.11.24"]
[Round "11"]
[White "sorrm8thatscheckm8"]
[Black "AbdAlAgathos"]
[Result "1-0"]
[WhiteElo "2503"]
[BlackElo "2367"]
[TimeControl "180+1"]
[EndTime "12:23:43 PST"]
[Termination "sorrm8thatscheckm8 won by resignation"]

1. d4 {[%clk 0:03:00.9]} 1... d5 {[%clk 0:02:57]} 2. c4 {[%clk 0:03:01.1]} 2...
c6 {[%clk 0:02:56.5]} 3. cxd5 {[%clk 0:03:00.9]} 3... cxd5 {[%clk 0:02:57.4]} 4.
Nc3 {[%clk 0:03:01.8]} 4... Nf6 {[%clk 0:02:57.9]} 5. f3 {[%clk 0:03:01.9]} 5...
Nc6 {[%clk 0:02:44.4]} 6. e4 {[%clk 0:03:02.8]} 6... dxe4 {[%clk 0:02:42.5]} 7.
d5 {[%clk 0:03:03.7]} 7... Ne5 {[%clk 0:02:40.1]} 8. fxe4 {[%clk 0:03:04]} 8...
g6 {[%clk 0:02:35.3]} 9. Nf3 {[%clk 0:03:03.8]} 9... Nxf3+ {[%clk 0:02:34.6]}
10. Qxf3 {[%clk 0:03:02.8]} 10... Bg7 {[%clk 0:02:34.5]} 11. Bb5+ {[%clk
0:03:02.6]} 11... Bd7 {[%clk 0:02:33.9]} 12. Bd3 {[%clk 0:03:02.2]} 12... Ng4
{[%clk 0:02:28.7]} 13. Bf4 {[%clk 0:02:53.3]} 13... Qb6 {[%clk 0:02:09.2]} 14.
Rb1 {[%clk 0:02:38]} 14... O-O {[%clk 0:01:56.8]} 15. h3 {[%clk 0:02:28]} 15...
Ne5 {[%clk 0:01:56.3]} 16. Qg3 {[%clk 0:02:21.2]} 16... Nxd3+ {[%clk 0:01:46.9]}
17. Qxd3 {[%clk 0:02:22.1]} 17... Rac8 {[%clk 0:01:44.7]} 18. Be3 {[%clk
0:02:18.5]} 18... Qa5 {[%clk 0:01:37.7]} 19. O-O {[%clk 0:02:19]} 19... a6
{[%clk 0:01:17.7]} 20. Bd4 {[%clk 0:02:03.3]} 20... e5 {[%clk 0:01:08.1]} 21. b4
{[%clk 0:01:49.4]} 21... Qc7 {[%clk 0:00:59.1]} 22. Bc5 {[%clk 0:01:43.2]} 22...
Rfe8 {[%clk 0:00:50.6]} 23. d6 {[%clk 0:01:42.8]} 23... Qc6 {[%clk 0:00:33.6]}
24. Nd5 {[%clk 0:01:43.7]} 24... Qb5 {[%clk 0:00:26.9]} 25. Qf3 {[%clk
0:01:39.6]} 25... Be6 {[%clk 0:00:22.1]} 26. Ne7+ {[%clk 0:01:30.6]} 26... Rxe7
{[%clk 0:00:18.7]} 27. dxe7 {[%clk 0:01:31.5]} 27... Re8 {[%clk 0:00:18.8]} 28.
Rfd1 {[%clk 0:01:28.6]} 28... b6 {[%clk 0:00:18.8]} 29. Bd6 {[%clk 0:01:28.2]}
29... Qc6 {[%clk 0:00:18.3]} 30. Rbc1 {[%clk 0:01:25.7]} 30... Qa4 {[%clk
0:00:18.3]} 31. a3 {[%clk 0:01:22.7]} 31... Bh6 {[%clk 0:00:12.4]} 32. Bxe5
{[%clk 0:01:21.3]} 32... Rxe7 {[%clk 0:00:10]} 33. Qf6 {[%clk 0:01:12.2]} 1-0

[Event "*** Titled Tuesday Blitz"]
[Site "Chess.com"]
[Date "2020.11.24"]
[Round "11"]
[White "anon219"]
[Black "Jungle_Jaguar"]
[Result "1-0"]
[WhiteElo "2766"]
[BlackElo "2611"]
[TimeControl "180+1"]
[EndTime "12:23:56 PST"]
[Termination "anon219 won on time"]

1. e4 {[%clk 0:03:00.9]} 1... e5 {[%clk 0:02:57.8]} 2. Bc4 {[%clk 0:03:00.5]}
2... Nf6 {[%clk 0:02:57.1]} 3. Nc3 {[%clk 0:03:00.5]} 3... Nc6 {[%clk
0:02:53.4]} 4. d3 {[%clk 0:03:00.6]} 4... Bc5 {[%clk 0:02:53.2]} 5. f4 {[%clk
0:03:00.5]} 5... h5 {[%clk 0:02:36.2]} 6. Nf3 {[%clk 0:02:23.1]} 6... Ng4 {[%clk
0:02:29.5]} 7. Qe2 {[%clk 0:02:19.3]} 7... Nd4 {[%clk 0:02:22.3]} 8. Nxd4 {[%clk
0:02:17.6]} 8... exd4 {[%clk 0:02:19.7]} 9. Nd1 {[%clk 0:02:17.2]} 9... O-O
{[%clk 0:02:11.2]} 10. O-O {[%clk 0:02:12.4]} 10... c6 {[%clk 0:02:05.4]} 11. h3
{[%clk 0:02:10.3]} 11... d5 {[%clk 0:02:05.5]} 12. Bb3 {[%clk 0:02:09.6]} 12...
Nf6 {[%clk 0:01:38.5]} 13. e5 {[%clk 0:02:07.8]} 13... Qe7 {[%clk 0:01:21.5]}
14. Qf3 {[%clk 0:02:00.4]} 14... Ne8 {[%clk 0:01:21.3]} 15. Qxh5 {[%clk
0:01:58.8]} 15... g6 {[%clk 0:01:21.5]} 16. Qh6 {[%clk 0:01:54.1]} 16... Ng7
{[%clk 0:01:20.2]} 17. g4 {[%clk 0:01:54.1]} 17... a5 {[%clk 0:01:05.4]} 18. f5
{[%clk 0:01:49.6]} 18... gxf5 {[%clk 0:00:50.4]} 19. Bg5 {[%clk 0:01:46]} 19...
f6 {[%clk 0:00:08.4]} 20. exf6 {[%clk 0:01:45.2]} 20... Qc7 {[%clk 0:00:04.8]}
21. Qxg7+ {[%clk 0:01:43.9]} 21... Qxg7 {[%clk 0:00:05.7]} 22. fxg7 {[%clk
0:01:44.7]} 22... Kxg7 {[%clk 0:00:04.9]} 23. Nf2 {[%clk 0:01:42.7]} 23... a4
{[%clk 0:00:04.5]} 24. Bxa4 {[%clk 0:01:28.5]} 24... Rxa4 {[%clk 0:00:05.4]} 25.
a3 {[%clk 0:01:29.1]} 25... Ra8 {[%clk 0:00:05.6]} 26. Kg2 {[%clk 0:01:25.9]}
26... Rf7 {[%clk 0:00:05.4]} 27. Rae1 {[%clk 0:01:20.9]} 27... Bd7 {[%clk
0:00:05.2]} 28. Bf4 {[%clk 0:01:17]} 28... Rg8 {[%clk 0:00:04]} 29. g5 {[%clk
0:01:14.1]} 29... Kg6 {[%clk 0:00:02.9]} 30. h4 {[%clk 0:01:12.7]} 30... Rh8
{[%clk 0:00:03]} 31. Kg3 {[%clk 0:01:10.8]} 31... Rfh7 {[%clk 0:00:03]} 32. Rh1
{[%clk 0:01:09]} 32... b5 {[%clk 0:00:02.4]} 33. b4 {[%clk 0:01:02.6]} 33... Be7
{[%clk 0:00:01.1]} 34. h5+ {[%clk 0:01:00.6]} 1-0

[Event "*** Titled Tuesday Blitz"]
[Site "Chess.com"]
[Date "2020.11.24"]
[Round "11"]
[White "Oglob71"]
[Black "PIwan"]
[Result "1-0"]
[WhiteElo "2423"]
[BlackElo "2520"]
[TimeControl "180+1"]
[EndTime "12:23:58 PST"]
[Termination "Oglob71 won by resignation"]

1. d4 {[%clk 0:03:00.9]} 1... b6 {[%clk 0:02:59.8]} 2. e4 {[%clk 0:02:59.9]}
2... e6 {[%clk 0:03:00]} 3. Bd3 {[%clk 0:03:00]} 3... Bb7 {[%clk 0:02:59.1]} 4.
Nf3 {[%clk 0:02:59.9]} 4... c5 {[%clk 0:02:59]} 5. c3 {[%clk 0:02:59.6]} 5...
cxd4 {[%clk 0:02:58.9]} 6. cxd4 {[%clk 0:02:59.1]} 6... Nc6 {[%clk 0:02:59.5]}
7. Nc3 {[%clk 0:02:58.7]} 7... a6 {[%clk 0:02:32]} 8. O-O {[%clk 0:02:57.6]}
8... Be7 {[%clk 0:02:17.6]} 9. Re1 {[%clk 0:02:55.2]} 9... d6 {[%clk 0:02:17.1]}
10. a3 {[%clk 0:02:54.2]} 10... Nf6 {[%clk 0:02:14.8]} 11. Bg5 {[%clk 0:02:50]}
11... O-O {[%clk 0:02:13.2]} 12. Rc1 {[%clk 0:02:49.6]} 12... h6 {[%clk
0:02:11.9]} 13. Bf4 {[%clk 0:02:49]} 13... Nxd4 {[%clk 0:02:02.3]} 14. Nxd4
{[%clk 0:02:46.7]} 14... e5 {[%clk 0:02:02.7]} 15. Be3 {[%clk 0:02:47.1]} 15...
exd4 {[%clk 0:01:59.9]} 16. Bxd4 {[%clk 0:02:47.6]} 16... Nd7 {[%clk 0:01:57.2]}
17. Bf1 {[%clk 0:02:45.1]} 17... Bf6 {[%clk 0:01:53.8]} 18. Be3 {[%clk
0:02:41.7]} 18... Nc5 {[%clk 0:01:48.7]} 19. f3 {[%clk 0:02:40.5]} 19... Bg5
{[%clk 0:01:36.5]} 20. b4 {[%clk 0:02:37.6]} 20... Ne6 {[%clk 0:01:31.9]} 21.
Qd2 {[%clk 0:02:35.7]} 21... Rc8 {[%clk 0:01:20]} 22. f4 {[%clk 0:02:33.6]}
22... Bh4 {[%clk 0:01:11.9]} 23. g3 {[%clk 0:02:32]} 23... Bf6 {[%clk
0:01:11.7]} 24. Bg2 {[%clk 0:02:31.5]} 24... b5 {[%clk 0:00:35.7]} 25. Red1
{[%clk 0:02:29.1]} 25... Qd7 {[%clk 0:00:33.1]} 26. Nd5 {[%clk 0:02:28.7]} 26...
Bxd5 {[%clk 0:00:31]} 27. Qxd5 {[%clk 0:02:28.1]} 27... Rxc1 {[%clk 0:00:26.8]}
28. Rxc1 {[%clk 0:02:28.1]} 28... Rc8 {[%clk 0:00:26.3]} 29. e5 {[%clk
0:02:21.7]} 29... Rxc1+ {[%clk 0:00:23.8]} 30. Bxc1 {[%clk 0:02:22.1]} 30...
Qa7+ {[%clk 0:00:24.2]} 31. Kf1 {[%clk 0:02:18.8]} 31... dxe5 {[%clk 0:00:24.3]}
32. fxe5 {[%clk 0:02:19.1]} 32... Qc7 {[%clk 0:00:18]} 33. Be3 {[%clk 0:02:16]}
33... Bxe5 {[%clk 0:00:17.5]} 34. Qa8+ {[%clk 0:02:14.4]} 34... Kh7 {[%clk
0:00:17.4]} 35. Qxa6 {[%clk 0:02:14.2]} 35... Qc4+ {[%clk 0:00:17]} 36. Kf2
{[%clk 0:02:13.1]} 36... Qc2+ {[%clk 0:00:16.3]} 37. Kg1 {[%clk 0:02:09.9]}
37... Qd1+ {[%clk 0:00:14.6]} 38. Bf1 {[%clk 0:02:08.9]} 38... Bd4 {[%clk
0:00:14.7]} 39. Bxd4 {[%clk 0:02:04.9]} 39... Qxd4+ {[%clk 0:00:15.6]} 40. Kg2
{[%clk 0:02:04.3]} 40... Qe4+ {[%clk 0:00:15.9]} 41. Kg1 {[%clk 0:02:04.2]}
41... Qe3+ {[%clk 0:00:15.9]} 42. Kg2 {[%clk 0:02:03.6]} 42... Ng5 {[%clk
0:00:13.4]} 43. Qxb5 {[%clk 0:01:56.9]} 43... Qf3+ {[%clk 0:00:12.6]} 44. Kg1
{[%clk 0:01:56.7]} 44... Qe3+ {[%clk 0:00:11.7]} 45. Kh1 {[%clk 0:01:52.8]}
45... Nf3 {[%clk 0:00:06.8]} 46. Qd3+ {[%clk 0:01:51.8]} 46... Qxd3 {[%clk
0:00:05.5]} 47. Bxd3+ {[%clk 0:01:52]} 47... Kg8 {[%clk 0:00:06.4]} 48. a4
{[%clk 0:01:52]} 48... Ne5 {[%clk 0:00:07.1]} 49. Be2 {[%clk 0:01:51.2]} 49...
Kf8 {[%clk 0:00:07.5]} 50. a5 {[%clk 0:01:51.4]} 50... Ke7 {[%clk 0:00:06.4]}
51. b5 {[%clk 0:01:51.4]} 51... Kd8 {[%clk 0:00:05]} 52. b6 {[%clk 0:01:51.7]}
52... Nc6 {[%clk 0:00:03.7]} 53. a6 {[%clk 0:01:51.5]} 53... Kc8 {[%clk
0:00:04.3]} 54. Bf3 {[%clk 0:01:50.2]} 1-0

[Event "*** Titled Tuesday Blitz"]
[Site "Chess.com"]
[Date "2020.11.24"]
[Round "11"]
[White "Tenamu"]
[Black "picturesquecheck"]
[Result "1-0"]
[WhiteElo "2320"]
[BlackElo "2129"]
[TimeControl "180+1"]
[EndTime "12:23:59 PST"]
[Termination "Tenamu won by resignation"]

1. d4 {[%clk 0:03:00.3]} 1... Nf6 {[%clk 0:02:59.4]} 2. Nc3 {[%clk 0:02:58.4]}
2... d5 {[%clk 0:03:00.3]} 3. Bf4 {[%clk 0:02:57.5]} 3... e6 {[%clk 0:02:56.7]}
4. e3 {[%clk 0:02:57.4]} 4... Bd6 {[%clk 0:02:55.4]} 5. Nf3 {[%clk 0:02:57.4]}
5... O-O {[%clk 0:02:54.2]} 6. Be2 {[%clk 0:02:56.8]} 6... c5 {[%clk 0:02:52.7]}
7. O-O {[%clk 0:02:57.2]} 7... a6 {[%clk 0:02:51.2]} 8. a3 {[%clk 0:02:56.3]}
8... Nc6 {[%clk 0:02:46.9]} 9. Bg3 {[%clk 0:02:54.8]} 9... cxd4 {[%clk
0:02:45.2]} 10. exd4 {[%clk 0:02:53.2]} 10... Bxg3 {[%clk 0:02:42]} 11. hxg3
{[%clk 0:02:52.6]} 11... Ne4 {[%clk 0:02:39.3]} 12. Bd3 {[%clk 0:02:48.6]} 12...
f5 {[%clk 0:02:36.2]} 13. Ne2 {[%clk 0:02:45]} 13... Qf6 {[%clk 0:02:33.2]} 14.
c3 {[%clk 0:02:42.2]} 14... Bd7 {[%clk 0:02:29.7]} 15. Re1 {[%clk 0:02:38.3]}
15... Rae8 {[%clk 0:02:17.3]} 16. Qc2 {[%clk 0:02:32.6]} 16... b5 {[%clk
0:02:13.8]} 17. a4 {[%clk 0:02:31.9]} 17... Rc8 {[%clk 0:02:07.4]} 18. axb5
{[%clk 0:02:30.4]} 18... Nb4 {[%clk 0:02:05.9]} 19. Qd1 {[%clk 0:02:30.3]} 19...
Nxd3 {[%clk 0:02:05.1]} 20. Qxd3 {[%clk 0:02:31.2]} 20... Bxb5 {[%clk
0:02:05.1]} 21. Qd1 {[%clk 0:02:31.7]} 21... Bxe2 {[%clk 0:01:51.3]} 22. Qxe2
{[%clk 0:02:31.3]} 22... Rb8 {[%clk 0:01:38]} 23. Rxa6 {[%clk 0:02:29.5]} 23...
Rb7 {[%clk 0:01:25.4]} 24. c4 {[%clk 0:02:25.6]} 24... Rfb8 {[%clk 0:01:21.1]}
25. cxd5 {[%clk 0:02:19.8]} 25... Rxb2 {[%clk 0:01:18.3]} 26. Qc4 {[%clk
0:02:16.6]} 26... Rxf2 {[%clk 0:01:04.3]} 27. Rxe6 {[%clk 0:02:11.5]} 27... Qf7
{[%clk 0:00:59.4]} 28. Rc1 {[%clk 0:02:05]} 28... h6 {[%clk 0:00:47.8]} 29. Rf1
{[%clk 0:01:47.1]} 29... Rxf1+ {[%clk 0:00:45.9]} 30. Qxf1 {[%clk 0:01:48]}
30... Nxg3 {[%clk 0:00:23]} 31. Qd1 {[%clk 0:01:40.8]} 31... Ne4 {[%clk
0:00:21]} 32. Ne5 {[%clk 0:01:37.7]} 32... Qc7 {[%clk 0:00:18.3]} 33. Rc6 {[%clk
0:01:18.2]} 33... Qd8 {[%clk 0:00:16.1]} 34. d6 {[%clk 0:01:13.1]} 34... Nf6
{[%clk 0:00:11.2]} 35. Qd3 {[%clk 0:01:08.6]} 35... g6 {[%clk 0:00:08.4]} 36.
Qc4+ {[%clk 0:01:06.3]} 36... Kh7 {[%clk 0:00:05.5]} 37. Qf7+ {[%clk 0:01:05.5]}
1-0

[Event "*** Titled Tuesday Blitz"]
[Site "Chess.com"]
[Date "2020.11.24"]
[Round "11"]
[White "Slovak_fighter2000"]
[Black "Bulldog167"]
[Result "0-1"]
[WhiteElo "2465"]
[BlackElo "2616"]
[TimeControl "180+1"]
[EndTime "12:24:05 PST"]
[Termination "Bulldog167 won by resignation"]

1. d4 {[%clk 0:03:00.9]} 1... d5 {[%clk 0:02:57.4]} 2. Nf3 {[%clk 0:03:00.9]}
2... f5 {[%clk 0:02:54.3]} 3. c4 {[%clk 0:03:00.3]} 3... e6 {[%clk 0:02:54.3]}
4. cxd5 {[%clk 0:02:57]} 4... exd5 {[%clk 0:02:54]} 5. Nc3 {[%clk 0:02:57.1]}
5... Nf6 {[%clk 0:02:53.6]} 6. Bg5 {[%clk 0:02:57]} 6... c6 {[%clk 0:02:53]} 7.
e3 {[%clk 0:02:57.1]} 7... Bd6 {[%clk 0:02:51.6]} 8. Bd3 {[%clk 0:02:56.2]} 8...
O-O {[%clk 0:02:51.6]} 9. Qc2 {[%clk 0:02:55.5]} 9... Qd7 {[%clk 0:02:11.3]} 10.
Ne5 {[%clk 0:02:42.6]} 10... Qe6 {[%clk 0:02:10.8]} 11. f4 {[%clk 0:02:39]}
11... Ne4 {[%clk 0:02:05.1]} 12. Nxe4 {[%clk 0:02:35.2]} 12... fxe4 {[%clk
0:02:05.1]} 13. Be2 {[%clk 0:02:33.9]} 13... Bb4+ {[%clk 0:02:00.1]} 14. Kd1
{[%clk 0:02:28.2]} 14... Nd7 {[%clk 0:01:56.1]} 15. a3 {[%clk 0:02:12.8]} 15...
Nxe5 {[%clk 0:01:48]} 16. fxe5 {[%clk 0:02:03.4]} 16... Be7 {[%clk 0:01:45.2]}
17. Bf4 {[%clk 0:01:55.2]} 17... b6 {[%clk 0:01:33.9]} 18. Bg3 {[%clk
0:01:25.3]} 18... c5 {[%clk 0:01:32.5]} 19. Rc1 {[%clk 0:01:10.7]} 19... c4
{[%clk 0:01:27.5]} 20. Kd2 {[%clk 0:01:04.7]} 20... Bd7 {[%clk 0:01:23.5]} 21.
Rcf1 {[%clk 0:01:02.7]} 21... b5 {[%clk 0:01:21.7]} 22. Rxf8+ {[%clk 0:01:01.4]}
22... Bxf8 {[%clk 0:01:21.7]} 23. Rf1 {[%clk 0:00:38.4]} 23... a5 {[%clk
0:01:21.2]} 24. h3 {[%clk 0:00:35.5]} 24... Qg6 {[%clk 0:01:16.9]} 25. Bf4
{[%clk 0:00:27.3]} 25... b4 {[%clk 0:01:08.6]} 26. g4 {[%clk 0:00:21.9]} 26...
bxa3 {[%clk 0:01:04.1]} 27. bxa3 {[%clk 0:00:22.8]} 27... Bxa3 {[%clk
0:01:04.3]} 28. Bxc4 {[%clk 0:00:14.6]} 28... dxc4 {[%clk 0:00:57.7]} 29. Qxc4+
{[%clk 0:00:15.5]} 29... Be6 {[%clk 0:00:57.1]} 30. d5 {[%clk 0:00:14.7]} 30...
Rd8 {[%clk 0:00:55.3]} 31. Ke2 {[%clk 0:00:08.3]} 31... Bxd5 {[%clk 0:00:54.2]}
32. Qb5 {[%clk 0:00:07.5]} 32... Qc6 {[%clk 0:00:42.8]} 0-1

[Event "*** Titled Tuesday Blitz"]
[Site "Chess.com"]
[Date "2020.11.24"]
[Round "11"]
[White "Oleksandr_Bortnyk"]
[Black "klimkoj"]
[Result "0-1"]
[WhiteElo "2871"]
[BlackElo "2635"]
[TimeControl "180+1"]
[EndTime "12:24:07 PST"]
[Termination "klimkoj won on time"]

1. d4 {[%clk 0:03:00.9]} 1... Nf6 {[%clk 0:02:59.5]} 2. Nc3 {[%clk 0:03:01.8]}
2... d5 {[%clk 0:02:59]} 3. Bf4 {[%clk 0:03:02]} 3... a6 {[%clk 0:02:53.7]} 4.
e3 {[%clk 0:03:02]} 4... e6 {[%clk 0:02:53.8]} 5. Nf3 {[%clk 0:03:01.6]} 5...
Bb4 {[%clk 0:02:53.3]} 6. a3 {[%clk 0:02:56.4]} 6... Bxc3+ {[%clk 0:02:51.8]} 7.
bxc3 {[%clk 0:02:57.3]} 7... c5 {[%clk 0:02:43.7]} 8. dxc5 {[%clk 0:02:56]} 8...
Qa5 {[%clk 0:02:39.6]} 9. Be5 {[%clk 0:02:26.7]} 9... Nc6 {[%clk 0:02:38.3]} 10.
Bd4 {[%clk 0:02:17.2]} 10... O-O {[%clk 0:02:30]} 11. Bd3 {[%clk 0:01:48.2]}
11... Nd7 {[%clk 0:02:24.8]} 12. Bxh7+ {[%clk 0:01:47.8]} 12... Kxh7 {[%clk
0:02:00.8]} 13. Ng5+ {[%clk 0:01:46.8]} 13... Kg6 {[%clk 0:02:01.3]} 14. Qd3+
{[%clk 0:01:21.4]} 14... f5 {[%clk 0:01:43.8]} 15. Nxe6 {[%clk 0:01:21.3]} 15...
Rf6 {[%clk 0:01:36.7]} 16. Nf4+ {[%clk 0:01:16.4]} 16... Kf7 {[%clk 0:01:36.3]}
17. Nxd5 {[%clk 0:01:12.5]} 17... Nde5 {[%clk 0:01:19.1]} 18. Bxe5 {[%clk
0:00:42.3]} 18... Nxe5 {[%clk 0:01:20]} 19. Qd4 {[%clk 0:00:43.2]} 19... Nc6
{[%clk 0:01:15]} 20. Qd3 {[%clk 0:00:37.2]} 20... Ne5 {[%clk 0:00:43.5]} 21. Qd4
{[%clk 0:00:33.3]} 21... Nc6 {[%clk 0:00:43.2]} 22. Qh4 {[%clk 0:00:20.8]} 22...
Rh6 {[%clk 0:00:36.4]} 23. Qf4 {[%clk 0:00:10.2]} 23... Be6 {[%clk 0:00:36.4]}
24. O-O {[%clk 0:00:06.9]} 24... Rah8 {[%clk 0:00:32.3]} 25. h3 {[%clk
0:00:02.6]} 25... Rh4 {[%clk 0:00:31.5]} 26. Qd6 {[%clk 0:00:01.3]} 26... Rd8
{[%clk 0:00:31.2]} 0-1